fUST/lending_fUST_20260402
["ID","MTS","AMOUNT","RATE_DAILY","PERIOD"]
[419290534,1775116180088,267.89800954,0.00036543,120]
[419290535,1775116180241,1736.11,0.00036543,120]
[419290536,1775116180476,1736.11,0.00036543,120]
[419290537,1775116180738,1736.11,0.00036543,120]
[419290538,1775116180979,1736.11,0.00036543,120]
[419290539,1775116181238,1736.11,0.00036543,120]
[419290540,1775116181470,1736.23,0.00036543,120]
[419290541,1775116183801,580.93,0.00036543,120]
[419290542,1775116184037,580.93,0.00036543,120]
[419290543,1775116184295,580.93,0.00036543,120]
[419290544,1775116184519,580.93,0.00036543,120]
[419290545,1775116184781,580.93,0.00036543,120]
[419290546,1775116185009,580.93,0.00036543,120]
[419290547,1775116185347,580.93,0.00036543,120]
[419290548,1775116185496,580.93,0.00036543,120]
[419290549,1775116185751,580.93,0.00036543,120]
[419290550,1775116185979,580.93,0.00036543,120]
[419290551,1775116186217,580.93,0.00036543,120]
[419290552,1775116186445,580.93,0.00036543,120]
[419290553,1775116186700,580.93,0.00036543,120]
[419290554,1775116186930,580.93,0.00036543,120]
[419290555,1775116187158,580.93,0.00036543,120]
[419290556,1775116187388,580.93,0.00036543,120]
[419290557,1775116187640,580.93,0.00036543,120]
[419290558,1775116187881,580.93,0.00036543,120]
[419290559,1775116188116,580.93,0.00036543,120]
[419290560,1775116188385,580.93,0.00036543,120]
[419290561,1775116188613,580.93,0.00036543,120]
[419290562,1775116188993,580.93,0.00036543,120]
[419290563,1775116189107,580.93,0.00036543,120]
[419290564,1775116189337,581.0575255,0.00036543,120]
[419290565,1775116195632,500.0,0.00036543,120]
[419290566,1775116196359,500.0,0.00036543,120]
[419290567,1775116196590,500.0,0.00036543,120]
[419290568,1775116196844,460.92858328,0.00036543,120]
[419290569,1775116198093,612.82,0.00036543,120]
[419290570,1775116198348,612.82,0.00036543,120]
[419290571,1775116198576,612.82,0.00036543,120]
[419290572,1775116199106,612.82,0.00036543,120]
[419290573,1775116199260,612.82,0.00036543,120]
[419290574,1775116199515,612.82,0.00036543,120]
[419290575,1775116199735,612.82,0.00036543,120]
[419290576,1775116199955,612.82,0.00036543,120]
[419290577,1775116200220,612.82,0.00036543,120]
[419290578,1775116200443,612.82,0.00036543,120]
[419290579,1775116200666,612.82,0.00036543,120]
[419290580,1775116200976,612.82,0.00036543,120]
[419290581,1775116201220,612.82,0.00036543,120]
[419290582,1775116201445,612.82,0.00036543,120]
[419290583,1775116201584,302.90311887,0.00032876,120]
[419290584,1775116201697,612.82,0.00036543,120]
[419290585,1775116201920,612.82,0.00036543,120]
[419290586,1775116202167,612.82,0.00036543,120]
[419290587,1775116202394,612.82,0.00036543,120]
[419290588,1775116202650,612.82,0.00036543,120]
[419290589,1775116202884,612.82,0.00036543,120]
[419290590,1775116203307,612.82,0.00036543,120]
[419290591,1775116203561,612.82,0.00036543,120]
[419290592,1775116203791,612.82,0.00036543,120]
[419290593,1775116204016,613.02829934,0.00036543,120]
[419290594,1775116207542,303.60391261,0.00036543,120]
[419290595,1775116208002,500.26,0.00036543,120]
[419290596,1775116210491,233.26597451,0.00036542,120]
[419290597,1775116210524,500.0,0.00036542,120]
[419290598,1775116210740,500.0,0.00036542,120]
[419290599,1775116210961,500.0,0.00036542,120]
[419290600,1775116211197,550.46479956,0.00036542,120]
[419290601,1775116211514,500.0,0.00036542,120]
[419290602,1775116211605,500.0,0.00036542,120]
[419290603,1775116211769,500.0,0.00036542,120]
[419290604,1775116211851,500.0,0.00036542,120]
[419290605,1775116211902,500.0,0.00036542,120]
[419290606,1775116211992,494.39080616,0.00036542,120]
[419290607,1775116212121,500.0,0.00036542,120]
[419290608,1775116212156,500.0,0.00036542,120]
[419290609,1775116212335,500.0,0.00036542,120]
[419290610,1775116212533,500.0,0.00036542,120]
[419290611,1775116212765,500.0,0.00036542,120]
[419290612,1775116212831,500.0,0.00036542,120]
[419290613,1775116212985,500.0,0.00036542,120]
[419290614,1775116213056,500.0,0.00036542,120]
[419290615,1775116213209,500.0,0.00036542,120]
[419290616,1775116213286,500.0,0.00036542,120]
[419290617,1775116213436,500.0,0.00036542,120]
[419290618,1775116213515,500.0,0.00036542,120]
[419290619,1775116213683,500.0,0.00036542,120]
[419290620,1775116213745,500.0,0.00036542,120]
[419290621,1775116213781,500.0,0.00036542,120]
[419290622,1775116213945,500.0,0.00036542,120]
[419290623,1775116213981,171.78532431,0.00036542,120]
[419290624,1775116214037,500.0,0.00036542,120]
[419290625,1775116214193,500.0,0.00036542,120]
[419290626,1775116214229,500.0,0.00036542,120]
[419290627,1775116214424,500.0,0.00036542,120]
[419290628,1775116214458,500.0,0.00036542,120]
[419290629,1775116214681,500.0,0.00036542,120]
[419290630,1775116214723,500.0,0.00036542,120]
[419290631,1775116214908,500.0,0.00036542,120]
[419290632,1775116214955,500.0,0.00036542,120]
[419290633,1775116215144,500.0,0.00036542,120]
[419290634,1775116215219,500.0,0.00036542,120]
[419290635,1775116215375,500.0,0.00036542,120]
[419290636,1775116215473,500.0,0.00036542,120]
[419290637,1775116215639,500.0,0.00036542,120]
[419290638,1775116215701,500.0,0.00036542,120]
[419290639,1775116215893,500.0,0.00036542,120]
[419290640,1775116215932,500.0,0.00036542,120]
[419290641,1775116216093,500.0,0.00036542,120]
[419290642,1775116216167,500.0,0.00036542,120]
[419290643,1775116216335,204.09206833,0.00036542,120]
[419290644,1775116216409,500.0,0.00036542,120]
[419290645,1775116216640,500.0,0.00036542,120]
[419290646,1775116216861,500.0,0.00036542,120]
[419290647,1775116217288,500.0,0.00036542,120]
[419290648,1775116217860,264.37850188,0.00036542,120]
[419290649,1775116218515,500.0,0.00036542,31]
[419290674,1775116233622,-430.21656931,0.0001,2]
[419290676,1775116233632,-200.02,0.0001,2]
[419290678,1775116233641,-1000.0,0.00013699,2]
[419290680,1775116233650,-250.0,0.00016438,4]
[419290682,1775116233659,-626.39241858,0.00017779,2]
[419290684,1775116233669,-1175.32158892,0.00018922,7]
[419290687,1775116233678,-1000.0,0.00019182,2]
[419290688,1775116233688,-300.0,0.00019342,2]
[419290690,1775116233697,-300.0,0.00019342,2]
[419290692,1775116233706,-300.0,0.00019342,2]
[419290694,1775116233715,-300.0,0.00019342,2]
[419290697,1775116233724,-300.0,0.00019342,2]
[419290699,1775116233733,-1200.0,0.00019342,2]
[419290700,1775116233743,-7137.6739381,0.00019343,2]
[419290702,1775116233752,-250.0,0.00019726,4]
[419290703,1775116233762,-371.56784615,0.00019941,2]
[419290704,1775116233771,-2804.09248658,0.0001997,2]
[419290705,1775116233781,-501.49429262,0.00019999,15]
[419290706,1775116233790,-743.19729883,0.0002,2]
[419290707,1775116233802,-252.513281,0.0002,2]
[419290713,1775116235630,299.34206638,0.00036542,120]
[419290729,1775116238084,-7821.2022502,0.0002,2]
[419290731,1775116238096,-1134.089456,0.0002,2]
[419290733,1775116238150,-1026.00000002,0.0002,2]
[419290783,1775116240577,500.0,0.00019999,120]
[419290792,1775116240651,-2295.34752058,0.0002,2]
[419290794,1775116240662,-484.0,0.0002,2]
[419290818,1775116240888,172.33333333,0.000328,120]
[419290830,1775116240999,500.0,0.00021189,120]
[419290849,1775116241248,500.0,0.00021897,120]
[419290863,1775116241469,500.0,0.00021899,120]
[419290864,1775116241696,253.26,0.00021899,120]
[419290875,1775116242965,224.54162846,0.00036542,120]
[419290876,1775116243122,-443.0,0.0002,2]
[419290877,1775116243135,-570.18460029,0.0002,2]
[419290878,1775116243188,-2160.0,0.0002,2]
[419290887,1775116246191,-3070.46559308,0.0002,2]
[419290888,1775116246200,-172.56383053,0.0002007,14]
[419290889,1775116246256,-1551.68692873,0.0002007,14]
[419290890,1775116246265,-324.958712,0.00020072,2]
[419290891,1775116246275,-196.2501008,0.00020091,2]
[419290892,1775116246284,-165.626586,0.00020406,2]
[419290893,1775116246293,-231.28004662,0.00020667,2]
[419290894,1775116246302,-503.06663606,0.00020667,2]
[419290895,1775116246311,-502.24424742,0.00020667,2]
[419290896,1775116246319,-507.04382197,0.00020689,2]
[419290897,1775116246328,-214.34613655,0.0002099,2]
[419290898,1775116246337,-165.63807593,0.0002099,2]
[419290899,1775116246347,-385.8230458,0.0002099,2]
[419290900,1775116246356,-349.87021929,0.0002099,2]
[419290901,1775116246365,-283.80944923,0.0002099,2]
[419290902,1775116246374,-1453.074389,0.00021,2]
[419290903,1775116246384,-300.0,0.00021,2]
[419290904,1775116246393,-300.0,0.00021,2]
[419290905,1775116246403,-300.0,0.00021,2]
[419290906,1775116246412,-300.0,0.00021,2]
[419290907,1775116246422,-300.0,0.00021,2]
[419290908,1775116246432,-300.0,0.00021,2]
[419290909,1775116246441,-300.0,0.00021,2]
[419290910,1775116246450,-300.0,0.00021,2]
[419290911,1775116246459,-300.0,0.00021,2]
[419290912,1775116246470,-300.0,0.00021,2]
[419290913,1775116246479,-300.0,0.00021,2]
[419290914,1775116246489,-300.0,0.00021,2]
[419290915,1775116246498,-300.0,0.00021,2]
[419290916,1775116246507,-300.0,0.00021,2]
[419290917,1775116246516,-300.0,0.00021,2]
[419290918,1775116246526,-2804.09248654,0.00021031,2]
[419290919,1775116246536,-423.42877486,0.00021047,2]
[419290920,1775116246545,-420.0,0.00021075,2]
[419290921,1775116246554,-282.78996735,0.00021091,2]
[419290922,1775116246563,-662.16,0.00021105,10]
[419290923,1775116246573,-239.6881295,0.00021113,2]
[419290925,1775116265012,500.0,0.00036542,120]
[419290926,1775116265249,500.0,0.00036542,120]
[419290927,1775116265473,500.0,0.00036542,120]
[419290928,1775116265705,500.0,0.00036542,120]
[419290929,1775116265947,500.0,0.00036542,120]
[419290930,1775116266193,500.0,0.00036542,120]
[419290931,1775116266426,500.0,0.00036542,120]
[419290932,1775116266674,500.0,0.00036542,120]
[419290933,1775116266908,500.0,0.00036542,120]
[419290934,1775116267154,500.0,0.00036542,120]
[419290935,1775116267378,500.0,0.00036542,120]
[419290936,1775116267620,500.0,0.00036542,120]
[419290937,1775116268182,500.0,0.00036542,120]
[419290938,1775116268407,500.0,0.00036542,120]
[419290939,1775116268646,500.0,0.00036542,120]
[419290940,1775116268715,528.56069721,0.00036542,120]
[419290941,1775116268875,500.0,0.00036542,120]
[419290942,1775116269101,500.0,0.00036542,120]
[419290943,1775116269323,500.0,0.00036542,120]
[419290944,1775116269541,500.0,0.00036542,120]
[419290945,1775116269773,500.0,0.00036542,120]
[419290946,1775116270004,500.0,0.00036542,120]
[419290947,1775116270234,500.0,0.00036542,120]
[419290948,1775116270447,575.66279802,0.00036542,120]
[419290949,1775116281812,500.0,0.00036542,120]
[419290950,1775116282039,500.0,0.00036542,120]
[419290951,1775116282294,500.0,0.00036542,120]
[419290952,1775116282528,500.0,0.00036542,120]
[419290953,1775116282781,500.0,0.00036542,120]
[419290954,1775116283046,157.05074505,0.00036542,120]
[419290955,1775116290412,281.9340445,0.00036542,120]
[419290956,1775116303777,500.0,0.00036542,120]
[419290957,1775116304012,500.0,0.00036542,120]
[419290958,1775116304264,304.16409511,0.00036542,120]
[419290959,1775116314838,510.75,0.00036542,120]
[419290960,1775116315073,510.75,0.00036542,120]
[419290961,1775116315303,510.75,0.00036542,120]
[419290962,1775116315536,510.75,0.00036542,120]
[419290963,1775116315757,510.75,0.00036542,120]
[419290964,1775116315981,510.75,0.00036542,120]
[419290965,1775116316217,510.75,0.00036542,120]
[419290966,1775116316488,500.0,0.00036542,120]
[419290967,1775116316692,510.75,0.00036542,120]
[419290968,1775116316728,519.58264133,0.00036542,120]
[419290969,1775116316925,510.75,0.00036542,120]
[419290970,1775116317307,510.75,0.00036542,120]
[419290971,1775116317658,510.75,0.00036542,120]
[419290972,1775116317771,510.75,0.00036542,120]
[419290973,1775116318007,510.75,0.00036542,120]
[419290974,1775116318261,510.75,0.00036542,120]
[419290975,1775116318469,510.75,0.00036542,120]
[419290976,1775116318702,510.75,0.00036542,120]
[419290977,1775116318930,510.75,0.00036542,120]
[419290978,1775116319167,510.75,0.00036542,120]
[419290979,1775116319393,510.75,0.00036542,120]
[419290980,1775116319627,510.75,0.00036542,120]
[419290981,1775116319855,510.75,0.00036542,120]
[419290982,1775116320105,510.75,0.00036542,120]
[419290983,1775116320338,510.75,0.00036542,120]
[419290984,1775116320573,510.84794966,0.00036542,120]
[419290985,1775116327769,2383.35441379,0.00036542,60]
[419290986,1775116328058,2383.35441379,0.00036542,60]
[419290987,1775116328327,2383.35441379,0.00036542,60]
[419290988,1775116328584,2383.35441379,0.00036542,60]
[419290989,1775116328851,2383.35441379,0.00036542,60]
[419290990,1775116329121,2383.35441378,0.00036542,60]
[419290991,1775116329377,2383.35441378,0.00036542,60]
[419290992,1775116329644,2383.35441378,0.00036542,60]
[419290993,1775116329912,2383.35441378,0.00036542,60]
[419290994,1775116330199,2383.35441378,0.00036542,60]
[419290995,1775116330479,2383.35441378,0.00036542,60]
[419290996,1775116330736,2383.35441378,0.00036542,60]
[419290997,1775116330898,500.0,0.00036542,120]
[419290998,1775116331007,2383.35441378,0.00036542,60]
[419290999,1775116331119,500.0,0.00036542,120]
[419291000,1775116331279,2383.35441378,0.00036542,60]
[419291001,1775116331344,500.0,0.00036542,120]
[419291002,1775116331597,473.98841001,0.00036542,120]
[419291003,1775116346705,164.92612062,0.00036542,120]
[419291004,1775116346832,464.0055687,0.00036542,120]
[419291005,1775116348950,212.95379626,0.00036542,120]
[419291006,1775116349966,476.1004942,0.00036542,120]
[419291007,1775116355370,500.0,0.00036542,120]
[419291008,1775116358072,500.0,0.00036542,120]
[419291009,1775116358322,500.0,0.00036542,120]
[419291010,1775116358557,500.0,0.00036542,120]
[419291011,1775116358780,416.99936927,0.00036542,120]
[419291012,1775116376146,1500.0,0.00032876,120]
[419291013,1775116381435,500.0,0.00036542,120]
[419291014,1775116381674,500.0,0.00036542,120]
[419291015,1775116381916,500.0,0.00036542,120]
[419291016,1775116382142,500.0,0.00036542,120]
[419291017,1775116382393,500.0,0.00036542,120]
[419291018,1775116382651,500.0,0.00036542,120]
[419291019,1775116382873,599.33316945,0.00036542,120]
[419291020,1775116383635,353.50722311,0.00036542,120]
[419291021,1775116384693,231.64068687,0.00036542,30]
[419291022,1775116385177,467.74617288,0.00036542,30]
[419291023,1775116386008,500.0,0.00036542,120]
[419291024,1775116386266,500.0,0.00036542,120]
[419291025,1775116386494,500.0,0.00036542,120]
[419291026,1775116386799,500.0,0.00036542,120]
[419291027,1775116387017,500.0,0.00036542,120]
[419291028,1775116387235,264.70258914,0.00036542,120]
[419291029,1775116387813,620.99672706,0.00036542,30]
[419291030,1775116388869,620.99672707,0.00036542,30]
[419291031,1775116405109,163.00893394,0.000328,120]
[419291032,1775116412732,1588.90294253,0.00036542,60]
[419291033,1775116413041,1588.90294253,0.00036542,60]
[419291034,1775116413314,1588.90294253,0.00036542,60]
[419291035,1775116413571,1588.90294252,0.00036542,60]
[419291036,1775116413792,378.75461576,0.00036542,120]
[419291037,1775116413950,1588.90294252,0.00036542,60]
[419291038,1775116414323,1588.90294252,0.00036542,60]
[419291039,1775116414585,1588.90294252,0.00036542,60]
[419291040,1775116414853,1588.90294252,0.00036542,60]
[419291041,1775116415118,1588.90294252,0.00036542,60]
[419291042,1775116415393,1588.90294252,0.00036542,60]
[419291043,1775116416019,1588.90294252,0.00036542,60]
[419291044,1775116416276,1588.90294252,0.00036542,60]
[419291045,1775116416535,1588.90294252,0.00036542,60]
[419291046,1775116416794,1588.90294252,0.00036542,60]
[419291047,1775116418356,613.44570654,0.00036542,120]
[419291048,1775116420153,153.68091909,0.00036542,120]
[419291049,1775116428269,253.46755971,0.00036542,120]
[419291050,1775116436822,500.0,0.00036542,30]
[419291051,1775116437088,500.0,0.00036542,30]
[419291052,1775116437308,500.0,0.00036542,30]
[419291053,1775116437549,500.0,0.00036542,30]
[419291054,1775116437782,500.0,0.00036542,30]
[419291055,1775116438200,500.0,0.00036542,30]
[419291056,1775116438438,300.05824901,0.00036542,30]
[419291057,1775116447169,219.40974717,0.00036542,120]
[419291058,1775116449023,500.0,0.00036542,120]
[419291059,1775116449282,585.18401822,0.00036542,120]
[419291060,1775116457185,500.0,0.00036542,120]
[419291061,1775116457327,500.0,0.00036542,120]
[419291062,1775116457573,500.0,0.00036542,120]
[419291063,1775116458015,501.26620582,0.00036542,120]
[419291064,1775116478705,1295.91,0.00036542,120]
[419291065,1775116478964,1295.91,0.00036542,120]
[419291066,1775116479194,1295.91,0.00036542,120]
[419291067,1775116479447,1295.91,0.00036542,120]
[419291068,1775116479687,1295.91,0.00036542,120]
[419291069,1775116479911,1295.91,0.00036542,120]
[419291070,1775116480138,1295.91,0.00036542,120]
[419291071,1775116480365,1295.91,0.00036542,120]
[419291072,1775116480590,1295.91,0.00036542,120]
[419291073,1775116481182,1295.91,0.00036542,120]
[419291074,1775116481419,1295.91,0.00036542,120]
[419291075,1775116481668,1295.91,0.00036542,120]
[419291076,1775116481895,1295.91,0.00036542,120]
[419291077,1775116482123,1295.91,0.00036542,120]
[419291078,1775116482349,1295.91,0.00036542,120]
[419291079,1775116482706,1295.91,0.00036542,120]
[419291080,1775116482819,1295.91,0.00036542,120]
[419291081,1775116483048,1295.91,0.00036542,120]
[419291082,1775116483277,1295.91,0.00036542,120]
[419291083,1775116483533,1295.91,0.00036542,120]
[419291084,1775116483777,1295.91,0.00036542,120]
[419291085,1775116484006,1295.91,0.00036542,120]
[419291086,1775116484246,1295.91,0.00036542,120]
[419291087,1775116484488,1296.01407668,0.00036542,120]
[419291088,1775116486502,500.0,0.00036542,120]
[419291089,1775116486798,500.0,0.00036542,120]
[419291090,1775116487041,500.0,0.00036542,120]
[419291091,1775116487335,500.0,0.00036542,120]
[419291092,1775116487563,500.0,0.00036542,120]
[419291093,1775116487721,500.0,0.00036542,120]
[419291094,1775116487801,500.0,0.00036542,120]
[419291095,1775116488070,309.27425815,0.00036542,120]
[419291096,1775116488239,500.0,0.00036542,120]
[419291097,1775116488482,500.0,0.00036542,120]
[419291098,1775116488719,500.0,0.00036542,120]
[419291099,1775116488957,500.0,0.00036542,120]
[419291100,1775116489190,500.0,0.00036542,120]
[419291101,1775116489801,500.0,0.00036542,120]
[419291102,1775116490056,500.0,0.00036542,120]
[419291103,1775116490303,503.51900103,0.00036542,120]
[419291104,1775116497536,1059.26862835,0.00036542,60]
[419291105,1775116497798,1059.26862835,0.00036542,60]
[419291106,1775116498063,1059.26862835,0.00036542,60]
[419291107,1775116498440,1059.26862835,0.00036542,60]
[419291108,1775116498602,1059.26862835,0.00036542,60]
[419291109,1775116498877,1059.26862835,0.00036542,60]
[419291110,1775116499138,1059.26862835,0.00036542,60]
[419291111,1775116499405,1059.26862835,0.00036542,60]
[419291112,1775116499693,1059.26862835,0.00036542,60]
[419291113,1775116499931,1059.26862835,0.00036542,60]
[419291114,1775116500209,1059.26862835,0.00036542,60]
[419291115,1775116500464,1059.26862835,0.00036542,60]
[419291116,1775116501123,1059.26862834,0.00036542,60]
[419291117,1775116501389,1059.26862834,0.00036542,60]
[419291118,1775116506823,200.94821111,0.00036542,120]
[419291119,1775116508683,332.00186182,0.00036542,120]
[419291120,1775116520635,765.2,0.00032877,120]
[419291121,1775116521062,10188.89361985,0.00036548,30]
[419291122,1775116535327,304.29579364,0.00036548,120]
[419291123,1775116546835,20000.0,0.00032,120]
[419291124,1775116548615,151.76494004,0.00036548,120]
[419291125,1775116583391,706.17908557,0.00036548,60]
[419291126,1775116583679,706.17908557,0.00036548,60]
[419291127,1775116583934,706.17908557,0.00036548,60]
[419291128,1775116584192,706.17908557,0.00036548,60]
[419291129,1775116584462,706.17908557,0.00036548,60]
[419291130,1775116584745,706.17908557,0.00036548,60]
[419291131,1775116585024,706.17908557,0.00036548,60]
[419291132,1775116585321,706.17908557,0.00036548,60]
[419291133,1775116585591,706.17908556,0.00036548,60]
[419291134,1775116585854,706.17908556,0.00036548,60]
[419291135,1775116586131,706.17908556,0.00036548,60]
[419291136,1775116586418,706.17908556,0.00036548,60]
[419291137,1775116586690,706.17908556,0.00036548,60]
[419291138,1775116586939,706.17908556,0.00036548,60]
[419291139,1775116604727,1500.0,0.00032876,120]
[419291140,1775116607814,1040.35,0.00036548,120]
[419291141,1775116608044,1040.35,0.00036548,120]
[419291142,1775116608275,1040.35,0.00036548,120]
[419291143,1775116608522,1040.35,0.00036548,120]
[419291144,1775116608752,1040.35,0.00036548,120]
[419291145,1775116608989,1040.35,0.00036548,120]
[419291146,1775116609229,1040.35,0.00036548,120]
[419291147,1775116609546,1040.35,0.00036548,120]
[419291148,1775116609804,1040.35,0.00036548,120]
[419291149,1775116610038,1040.35,0.00036548,120]
[419291150,1775116610290,1040.35,0.00036548,120]
[419291151,1775116610866,1040.35,0.00036548,120]
[419291152,1775116611092,1040.35,0.00036548,120]
[419291153,1775116611326,1040.35,0.00036548,120]
[419291154,1775116611549,1040.35,0.00036548,120]
[419291155,1775116611805,1040.35,0.00036548,120]
[419291156,1775116612040,1040.35,0.00036548,120]
[419291157,1775116612273,1040.35,0.00036548,120]
[419291158,1775116612496,1040.35,0.00036548,120]
[419291159,1775116612724,1040.35,0.00036548,120]
[419291160,1775116613029,1040.35,0.00036548,120]
[419291161,1775116613321,1040.35,0.00036548,120]
[419291162,1775116613406,1040.35,0.00036548,120]
[419291163,1775116613638,1040.50275873,0.00036548,120]
[419291164,1775116645427,500.0,0.00036548,120]
[419291165,1775116648132,238.0502471,0.00036548,120]
[419291166,1775116648188,232.0027844,0.00036548,120]
[419291167,1775116650493,500.0,0.00036548,120]
[419291168,1775116657885,225.06419872,0.00036548,120]
[419291169,1775116668165,196.28656252,0.00036548,120]
[419291170,1775116671490,507.00036913,0.00036548,60]
[419291171,1775116671739,507.00036913,0.00036548,60]
[419291172,1775116672024,507.00036913,0.00036548,60]
[419291173,1775116672311,507.00036913,0.00036548,60]
[419291174,1775116672585,507.00036913,0.00036548,60]
[419291175,1775116672851,507.00036912,0.00036548,60]
[419291176,1775116673149,507.00036912,0.00036548,60]
[419291177,1775116673418,507.00036912,0.00036548,60]
[419291178,1775116673677,507.00036912,0.00036548,60]
[419291179,1775116673944,507.00036912,0.00036548,60]
[419291180,1775116674210,507.00036912,0.00036548,60]
[419291181,1775116674497,507.00036912,0.00036548,60]
[419291182,1775116674751,507.00036912,0.00036548,60]
[419291183,1775116712384,257.0,0.00036548,30]
[419291184,1775116712829,257.0,0.00036548,30]
[419291185,1775116724730,500.0,0.00036548,120]
[419291186,1775116724963,500.0,0.00036548,120]
[419291187,1775116725203,622.69879252,0.00036548,120]
[419291188,1775116789270,549.25039989,0.00036548,60]
[419291189,1775116789533,549.25039989,0.00036548,60]
[419291190,1775116789814,549.25039989,0.00036548,60]
[419291191,1775116790084,549.25039988,0.00036548,60]
[419291192,1775116790120,973.3,0.00032877,120]
[419291193,1775116790345,549.25039988,0.00036548,60]
[419291194,1775116790606,549.25039988,0.00036548,60]
[419291195,1775116791230,549.25039988,0.00036548,60]
[419291196,1775116791485,549.25039988,0.00036548,60]
[419291197,1775116792880,1958.44,0.00036548,120]
[419291198,1775116829734,1000.0,0.00032877,120]
[419291199,1775116847660,1000.0,0.00032877,120]
[419291200,1775116847850,1500.0,0.00032876,120]
[419291201,1775116868552,585.86709321,0.0003655,60]
[419291202,1775116868853,585.86709321,0.0003655,60]
[419291203,1775116869129,585.86709321,0.0003655,60]
[419291204,1775116869416,585.86709321,0.0003655,60]
[419291205,1775116869688,585.86709321,0.0003655,60]
[419291206,1775116881787,-443.86392216,0.00013699,2]
[419291207,1775116881801,-556.13607784,0.00013699,2]
[419291208,1775116881812,-400.65107667,0.00013699,2]
[419291209,1775116923443,516.8,0.00032877,120]
[419291210,1775116936340,1000.0,0.00032877,120]
[419291211,1775116941963,650.9634369,0.0003655,60]
[419291212,1775116942222,650.9634369,0.0003655,60]
[419291213,1775116942486,650.9634369,0.0003655,60]
[419291214,1775116945465,500.0,0.0003655,120]
[419291215,1775116948043,500.0,0.0003655,120]
[419291216,1775116948534,659.5767216,0.0003655,120]
[419291217,1775116954826,2139.3,0.00032877,120]
[419291218,1775116954931,232.0027844,0.0003655,120]
[419291219,1775116964651,238.0502472,0.0003655,120]
[419291220,1775116980424,251.2885536,0.0003655,120]
[419291222,1775117035810,650.9634369,0.0003655,60]
[419291223,1775117036181,650.9634369,0.0003655,60]
[419291224,1775117077573,1500.0,0.00032876,120]
[419291226,1775117088846,300.0,0.0003655,120]
[419291227,1775117089333,300.59046155,0.0003655,120]
[419291228,1775117103005,500.0,0.00032877,120]
[419291229,1775117110769,867.9512492,0.0003655,60]
[419291230,1775117112079,502.03628753,0.00036549,30]
[419291231,1775117149859,722.65907755,0.00036549,120]
[419291232,1775117179404,578.63416613,0.00036549,60]
[419291233,1775117213158,2062.0,0.00032877,120]
[419291234,1775117238397,3000.0,0.00036549,30]
[419291235,1775117245195,500.0,0.00036549,120]
[419291236,1775117247698,578.63416613,0.00036549,60]
[419291237,1775117249269,500.0,0.00036549,120]